[Event "*** Titled Tuesday Blitz"]
[Site "Chess.com"]
[Date "2019.07.02"]
[Round "1"]
[White "Ceejay271"]
[Black "albi1999"]
[Result "1/2-1/2"]
[WhiteElo "2154"]
[BlackElo "2518"]
[TimeControl "180+2"]
[EndTime "13:07:25 PDT"]
[Termination "Game drawn by agreement"]

1. d4 {[%clk 0:03:01.9]} 1... Nf6 {[%clk 0:02:56.5]} 2. Nf3 {[%clk 0:03:02.4]}
2... e6 {[%clk 0:02:53.7]} 3. Bg5 {[%clk 0:03:02.6]} 3... h6 {[%clk 0:02:53.4]}
4. Bh4 {[%clk 0:03:02.7]} 4... c5 {[%clk 0:02:51.8]} 5. c3 {[%clk 0:03:03.5]}
5... Qb6 {[%clk 0:02:51.2]} 6. Qb3 {[%clk 0:03:03.9]} 6... d5 {[%clk 0:02:50.2]}
7. e3 {[%clk 0:03:03.1]} 7... Nc6 {[%clk 0:02:48.8]} 8. Nbd2 {[%clk 0:03:02.2]}
8... Be7 {[%clk 0:02:43.9]} 9. Be2 {[%clk 0:03:02.2]} 9... O-O {[%clk 0:02:43]}
10. O-O {[%clk 0:03:02.7]} 10... Re8 {[%clk 0:02:37.3]} 11. Qxb6 {[%clk
0:03:01]} 11... axb6 {[%clk 0:02:36.7]} 12. a3 {[%clk 0:03:01.9]} 12... c4
{[%clk 0:02:31.4]} 13. Bd1 {[%clk 0:02:55.4]} 13... b5 {[%clk 0:02:30.3]} 14.
Bc2 {[%clk 0:02:55.9]} 14... Nd7 {[%clk 0:02:29.7]} 15. Bxe7 {[%clk 0:02:54]}
15... Rxe7 {[%clk 0:02:31.6]} 16. e4 {[%clk 0:02:54.3]} 16... Nb6 {[%clk
0:02:31.3]} 17. Rfe1 {[%clk 0:02:47.4]} 17... Bd7 {[%clk 0:02:30.2]} 18. exd5
{[%clk 0:02:45]} 18... exd5 {[%clk 0:02:32.1]} 19. Rxe7 {[%clk 0:02:43.8]} 19...
Nxe7 {[%clk 0:02:34]} 20. Re1 {[%clk 0:02:39]} 20... Kf8 {[%clk 0:02:34]} 21.
Nf1 {[%clk 0:02:20.1]} 21... Bf5 {[%clk 0:02:11.9]} 22. Bd1 {[%clk 0:01:58.6]}
22... Na4 {[%clk 0:02:07.8]} 23. Bxa4 {[%clk 0:01:58.5]} 23... bxa4 {[%clk
0:02:09.7]} 24. Ne3 {[%clk 0:01:55.6]} 24... Be4 {[%clk 0:02:04.9]} 25. Nd2
{[%clk 0:01:52.2]} 25... Bd3 {[%clk 0:02:04.7]} 26. Nf3 {[%clk 0:01:43.2]} 26...
f6 {[%clk 0:02:03.7]} 27. Rd1 {[%clk 0:01:41.5]} 27... Ra6 {[%clk 0:02:02.9]}
28. Rd2 {[%clk 0:01:41.8]} 28... Re6 {[%clk 0:02:01.3]} 29. Ne1 {[%clk
0:01:37.9]} 29... Bh7 {[%clk 0:02:00.3]} 30. N1c2 {[%clk 0:01:38.1]} 30... Bxc2
{[%clk 0:01:48.9]} 31. Nxc2 {[%clk 0:01:36.4]} 31... Nf5 {[%clk 0:01:49.7]} 32.
Kf1 {[%clk 0:01:36.8]} 32... Nh4 {[%clk 0:01:49.4]} 33. Ne3 {[%clk 0:01:34.7]}
33... Rd6 {[%clk 0:01:50.3]} 34. Re2 {[%clk 0:01:32.2]} 34... Kf7 {[%clk
0:01:49.3]} 35. g3 {[%clk 0:01:33.4]} 35... Nf3 {[%clk 0:01:41.1]} 36. Kg2
{[%clk 0:01:33.9]} 36... Ng5 {[%clk 0:01:38.4]} 37. h4 {[%clk 0:01:33.1]} 37...
Ne6 {[%clk 0:01:32.2]} 38. h5 {[%clk 0:01:32]} 38... Rd7 {[%clk 0:01:09.5]} 39.
Nf5 {[%clk 0:01:30.7]} 39... Nd8 {[%clk 0:01:04]} 40. Re3 {[%clk 0:01:18.6]}
40... Nc6 {[%clk 0:01:02.1]} 41. g4 {[%clk 0:01:14.6]} 41... Nd8 {[%clk
0:01:01.6]} 42. Kg3 {[%clk 0:01:12.7]} 42... Ne6 {[%clk 0:00:59.9]} 43. f4
{[%clk 0:01:10.9]} 43... Nc7 {[%clk 0:01:00.1]} 44. Kf3 {[%clk 0:01:10.7]} 44...
Ne8 {[%clk 0:01:00.8]} 45. Kg3 {[%clk 0:01:10.3]} 45... Nd6 {[%clk 0:01:01.8]}
46. Nxd6+ {[%clk 0:01:10.8]} 46... Rxd6 {[%clk 0:01:03.7]} 47. f5 {[%clk
0:01:11.6]} 47... Rb6 {[%clk 0:01:04.4]} 48. Re2 {[%clk 0:01:12.8]} 48... Rc6
{[%clk 0:01:05.5]} 49. Kf4 {[%clk 0:01:13.8]} 49... Rc7 {[%clk 0:01:05.5]} 50.
Kf3 {[%clk 0:01:14]} 50... Re7 {[%clk 0:01:06.1]} 51. Rxe7+ {[%clk 0:01:14.1]}
51... Kxe7 {[%clk 0:01:08]} 1/2-1/2

[Event "*** Titled Tuesday Blitz"]
[Site "Chess.com"]
[Date "2019.07.02"]
[Round "1"]
[White "Misha_Bilous"]
[Black "Adham_Fawzy"]
[Result "0-1"]
[WhiteElo "2381"]
[BlackElo "2732"]
[TimeControl "180+2"]
[EndTime "13:07:29 PDT"]
[Termination "Adham_Fawzy won by resignation"]

1. d4 {[%clk 0:03:00.3]} 1... d5 {[%clk 0:03:00.5]} 2. c4 {[%clk 0:03:01.7]}
2... c6 {[%clk 0:03:01.3]} 3. e3 {[%clk 0:03:02.2]} 3... Nf6 {[%clk 0:03:02.1]}
4. Nf3 {[%clk 0:03:03.8]} 4... Bf5 {[%clk 0:02:59.1]} 5. Nc3 {[%clk 0:03:01.9]}
5... e6 {[%clk 0:02:59.8]} 6. Nh4 {[%clk 0:02:58]} 6... Be4 {[%clk 0:02:59.4]}
7. f3 {[%clk 0:02:58.2]} 7... Bg6 {[%clk 0:03:00.5]} 8. Nxg6 {[%clk 0:02:59.3]}
8... hxg6 {[%clk 0:03:02.4]} 9. Bd3 {[%clk 0:02:02.9]} 9... Qc7 {[%clk
0:02:48.7]} 10. f4 {[%clk 0:01:50.2]} 10... Bb4 {[%clk 0:02:49.1]} 11. Bd2
{[%clk 0:01:48.7]} 11... Nbd7 {[%clk 0:02:49.8]} 12. O-O {[%clk 0:01:38.6]}
12... Bxc3 {[%clk 0:02:40]} 13. Bxc3 {[%clk 0:01:32.1]} 13... dxc4 {[%clk
0:02:35.6]} 14. Bxc4 {[%clk 0:01:33]} 14... Ne4 {[%clk 0:02:36.7]} 15. Qc2
{[%clk 0:01:30.5]} 15... Nd6 {[%clk 0:02:17.4]} 16. Bd3 {[%clk 0:01:25]} 16...
O-O-O {[%clk 0:01:59.5]} 17. b4 {[%clk 0:01:16.8]} 17... f5 {[%clk 0:01:57.9]}
18. a4 {[%clk 0:01:13.3]} 18... Nf6 {[%clk 0:01:58.4]} 19. Bd2 {[%clk
0:00:59.7]} 19... g5 {[%clk 0:01:57.8]} 20. b5 {[%clk 0:00:54.9]} 20... gxf4
{[%clk 0:01:58.1]} 21. Rxf4 {[%clk 0:00:54.9]} 21... Nd5 {[%clk 0:01:46.5]} 22.
bxc6 {[%clk 0:00:43.7]} 22... Nxf4 {[%clk 0:01:36.5]} 23. exf4 {[%clk
0:00:38.5]} 23... Qxc6 {[%clk 0:01:33.5]} 24. Qb3 {[%clk 0:00:37.3]} 24... Qd5
{[%clk 0:01:33.7]} 25. Qb4 {[%clk 0:00:31.2]} 25... Kb8 {[%clk 0:01:18.2]} 26.
a5 {[%clk 0:00:17.4]} 26... Nc4 {[%clk 0:01:10.1]} 27. Bc3 {[%clk 0:00:13.6]}
27... Ne3 {[%clk 0:01:09.5]} 28. Qb2 {[%clk 0:00:05.4]} 28... Rc8 {[%clk
0:01:00]} 29. a6 {[%clk 0:00:05.5]} 29... b6 {[%clk 0:01:00.8]} 30. Be1 {[%clk
0:00:05.5]} 30... Rc2 {[%clk 0:01:00.2]} 31. Qxc2 {[%clk 0:00:02.5]} 31... Nxc2
{[%clk 0:01:01.4]} 32. Bxc2 {[%clk 0:00:02.9]} 32... Qxd4+ {[%clk 0:01:02.6]}
0-1

[Event "*** Titled Tuesday Blitz"]
[Site "Chess.com"]
[Date "2019.07.02"]
[Round "1"]
[White "Amirreza_p"]
[Black "Rakesh"]
[Result "0-1"]
[WhiteElo "2823"]
[BlackElo "2452"]
[TimeControl "180+2"]
[EndTime "13:07:30 PDT"]
[Termination "Rakesh won by checkmate"]

1. d4 {[%clk 0:03:01.9]} 1... Nf6 {[%clk 0:03:00.9]} 2. g3 {[%clk 0:03:02.7]}
2... d5 {[%clk 0:02:58.3]} 3. Bg2 {[%clk 0:03:03.7]} 3... c5 {[%clk 0:02:58.5]}
4. dxc5 {[%clk 0:02:59.8]} 4... Nc6 {[%clk 0:02:59.1]} 5. Nf3 {[%clk 0:03:00.9]}
5... e5 {[%clk 0:02:59.8]} 6. O-O {[%clk 0:02:59.2]} 6... Bxc5 {[%clk
0:03:00.2]} 7. c4 {[%clk 0:03:00]} 7... d4 {[%clk 0:02:58.5]} 8. Nbd2 {[%clk
0:02:59.1]} 8... O-O {[%clk 0:02:55]} 9. Ng5 {[%clk 0:02:55.1]} 9... Bf5 {[%clk
0:02:51.4]} 10. Nge4 {[%clk 0:02:52]} 10... Nxe4 {[%clk 0:02:43.6]} 11. Nxe4
{[%clk 0:02:53.9]} 11... Be7 {[%clk 0:02:43.7]} 12. b3 {[%clk 0:02:49.9]} 12...
Rc8 {[%clk 0:02:39.6]} 13. Bb2 {[%clk 0:02:40]} 13... Bg6 {[%clk 0:02:38.2]} 14.
a3 {[%clk 0:02:39.6]} 14... f5 {[%clk 0:02:22.4]} 15. Nd2 {[%clk 0:02:40.3]}
15... e4 {[%clk 0:02:22.3]} 16. b4 {[%clk 0:02:41.4]} 16... Bf6 {[%clk
0:02:20.8]} 17. Nb3 {[%clk 0:02:38.3]} 17... Bf7 {[%clk 0:02:10.3]} 18. Rc1
{[%clk 0:02:38]} 18... a6 {[%clk 0:01:17.1]} 19. b5 {[%clk 0:02:27.9]} 19... Na5
{[%clk 0:01:15.7]} 20. Bxd4 {[%clk 0:02:02.9]} 20... Nxb3 {[%clk 0:01:03.8]} 21.
Bxf6 {[%clk 0:02:03.2]} 21... Qxd1 {[%clk 0:01:02.5]} 22. Rcxd1 {[%clk
0:01:58.5]} 22... gxf6 {[%clk 0:01:03.3]} 23. bxa6 {[%clk 0:01:57.3]} 23... bxa6
{[%clk 0:01:03.5]} 24. Bh3 {[%clk 0:01:58.2]} 24... Rc5 {[%clk 0:01:01.8]} 25.
Rd6 {[%clk 0:01:54.6]} 25... Bxc4 {[%clk 0:00:59.8]} 26. Rb1 {[%clk 0:01:55.1]}
26... a5 {[%clk 0:00:58.7]} 27. a4 {[%clk 0:01:54.2]} 27... Kg7 {[%clk 0:00:58]}
28. e3 {[%clk 0:01:53.1]} 28... Kg6 {[%clk 0:00:54.9]} 29. Rd7 {[%clk
0:01:45.5]} 29... Rf7 {[%clk 0:00:53.6]} 30. Rd8 {[%clk 0:01:43.1]} 30... Rfc7
{[%clk 0:00:53.3]} 31. Kg2 {[%clk 0:01:40.2]} 31... Be2 {[%clk 0:00:45.9]} 32.
g4 {[%clk 0:01:18.7]} 32... fxg4 {[%clk 0:00:41.7]} 33. Rxb3 {[%clk 0:01:19.1]}
33... gxh3+ {[%clk 0:00:39.5]} 34. Kxh3 {[%clk 0:01:20.3]} 34... Bc4 {[%clk
0:00:34.9]} 35. Rb6 {[%clk 0:01:18.2]} 35... Rg5 {[%clk 0:00:35.4]} 36. Rdd6
{[%clk 0:01:16.4]} 36... Rf7 {[%clk 0:00:35]} 37. Kh4 {[%clk 0:01:16.3]} 37...
Be2 {[%clk 0:00:34.3]} 38. Re6 {[%clk 0:01:14.9]} 38... Rg4+ {[%clk 0:00:34.6]}
39. Kh3 {[%clk 0:01:14.8]} 39... h5 {[%clk 0:00:36.1]} 40. Rb5 {[%clk
0:01:09.3]} 40... Bf1# {[%clk 0:00:35.7]} 0-1

[Event "*** Titled Tuesday Blitz"]
[Site "Chess.com"]
[Date "2019.07.02"]
[Round "1"]
[White "Natalya_Buksa"]
[Black "Lunaticx"]
[Result "0-1"]
[WhiteElo "2445"]
[BlackElo "2860"]
[TimeControl "180+2"]
[EndTime "13:07:31 PDT"]
[Termination "Lunaticx won by checkmate"]

1. e4 {[%clk 0:02:15.5]} 1... d6 {[%clk 0:02:57.9]} 2. d4 {[%clk 0:02:16.3]}
2... Nf6 {[%clk 0:02:56.7]} 3. Nc3 {[%clk 0:02:17.9]} 3... g6 {[%clk 0:02:55.5]}
4. f4 {[%clk 0:02:19.4]} 4... Bg7 {[%clk 0:02:53]} 5. Nf3 {[%clk 0:02:20.6]}
5... O-O {[%clk 0:02:51.6]} 6. e5 {[%clk 0:02:17.4]} 6... Nfd7 {[%clk
0:02:49.4]} 7. Bc4 {[%clk 0:02:13]} 7... Nb6 {[%clk 0:02:46.8]} 8. Bb3 {[%clk
0:02:14]} 8... Nc6 {[%clk 0:02:45.5]} 9. Be3 {[%clk 0:02:12.6]} 9... Na5 {[%clk
0:02:44.5]} 10. Qe2 {[%clk 0:02:10.7]} 10... c6 {[%clk 0:02:41.5]} 11. O-O-O
{[%clk 0:02:07.5]} 11... Nxb3+ {[%clk 0:02:37.2]} 12. cxb3 {[%clk 0:02:07.6]}
12... a5 {[%clk 0:02:38.3]} 13. Kb1 {[%clk 0:02:08]} 13... a4 {[%clk 0:02:35]}
14. b4 {[%clk 0:02:08.7]} 14... Be6 {[%clk 0:02:32.6]} 15. h3 {[%clk 0:02:01.6]}
15... Qd7 {[%clk 0:02:30.3]} 16. g4 {[%clk 0:02:02.3]} 16... a3 {[%clk
0:02:27.2]} 17. b3 {[%clk 0:02:03]} 17... Nd5 {[%clk 0:02:26.8]} 18. Nxd5 {[%clk
0:01:59.4]} 18... Bxd5 {[%clk 0:02:28]} 19. Rhf1 {[%clk 0:01:59.4]} 19... Qc7
{[%clk 0:02:22.3]} 20. Bd2 {[%clk 0:01:58.3]} 20... f5 {[%clk 0:02:14]} 21. g5
{[%clk 0:01:44]} 21... Rfd8 {[%clk 0:02:05.3]} 22. h4 {[%clk 0:01:43.9]} 22...
Be4+ {[%clk 0:01:57]} 23. Ka1 {[%clk 0:01:44.6]} 23... dxe5 {[%clk 0:01:57.8]}
24. Nxe5 {[%clk 0:01:37.3]} 24... Rxd4 {[%clk 0:01:55.1]} 25. Bc3 {[%clk
0:01:38.7]} 25... Rd5 {[%clk 0:01:50.4]} 26. h5 {[%clk 0:01:36.7]} 26... Rad8
{[%clk 0:01:46.4]} 27. hxg6 {[%clk 0:01:29.4]} 27... hxg6 {[%clk 0:01:47.2]} 28.
Qc4 {[%clk 0:01:17.9]} 28... e6 {[%clk 0:01:41.7]} 29. Qe2 {[%clk 0:01:12.8]}
29... Bxe5 {[%clk 0:01:39]} 30. fxe5 {[%clk 0:01:03.9]} 30... Rd3 {[%clk
0:01:39.8]} 31. Rc1 {[%clk 0:00:57.1]} 31... Rxc3 {[%clk 0:01:33]} 32. Rxc3
{[%clk 0:00:57.8]} 32... Qxe5 {[%clk 0:01:34.9]} 33. Rc1 {[%clk 0:00:52.7]}
33... Rd3 {[%clk 0:01:34.8]} 34. Qe1 {[%clk 0:00:53.7]} 34... Qd4 {[%clk
0:01:29.2]} 35. b5 {[%clk 0:00:41.7]} 35... cxb5 {[%clk 0:01:28.8]} 36. Qe3
{[%clk 0:00:09.7]} 36... Rxe3 {[%clk 0:01:26.4]} 37. b4 {[%clk 0:00:06.6]} 37...
Qxc3+ {[%clk 0:01:25.9]} 38. Rxc3 {[%clk 0:00:07.5]} 38... Re1+ {[%clk
0:01:27.1]} 39. Rc1 {[%clk 0:00:08.4]} 39... Rxc1# {[%clk 0:01:28.2]} 0-1

[Event "*** Titled Tuesday Blitz"]
[Site "Chess.com"]
[Date "2019.07.02"]
[Round "1"]
[White "Chesstrainer1"]
[Black "VishnuPrasanna"]
[Result "0-1"]
[WhiteElo "2418"]
[BlackElo "2804"]
[TimeControl "180+2"]
[EndTime "13:07:31 PDT"]
[Termination "VishnuPrasanna won by resignation"]

1. d4 {[%clk 0:03:01.9]} 1... Nf6 {[%clk 0:03:00.4]} 2. c4 {[%clk 0:03:02.8]}
2... g6 {[%clk 0:03:01.9]} 3. Nc3 {[%clk 0:03:03.7]} 3... Bg7 {[%clk 0:03:03.5]}
4. e4 {[%clk 0:03:04.4]} 4... d6 {[%clk 0:03:05]} 5. Nf3 {[%clk 0:03:05.7]} 5...
Nbd7 {[%clk 0:03:06.1]} 6. Be2 {[%clk 0:03:06.4]} 6... e5 {[%clk 0:03:07.3]} 7.
d5 {[%clk 0:02:40.3]} 7... Nc5 {[%clk 0:03:07.6]} 8. Qc2 {[%clk 0:02:39.7]} 8...
a5 {[%clk 0:03:07.9]} 9. Bg5 {[%clk 0:02:39.1]} 9... h6 {[%clk 0:03:08]} 10. Bh4
{[%clk 0:02:39.6]} 10... Bd7 {[%clk 0:03:09.4]} 11. Nd2 {[%clk 0:02:35]} 11...
Qb8 {[%clk 0:03:06.9]} 12. O-O {[%clk 0:02:33.5]} 12... Qa7 {[%clk 0:03:08]} 13.
Kh1 {[%clk 0:02:32.4]} 13... O-O {[%clk 0:03:06.1]} 14. b3 {[%clk 0:02:26.9]}
14... c6 {[%clk 0:03:06.9]} 15. f3 {[%clk 0:02:24.3]} 15... Rfc8 {[%clk
0:03:07.9]} 16. Bf2 {[%clk 0:02:21.7]} 16... Nh5 {[%clk 0:03:08.9]} 17. Rfb1
{[%clk 0:02:17.3]} 17... Nf4 {[%clk 0:03:07.2]} 18. Bf1 {[%clk 0:02:18.4]} 18...
cxd5 {[%clk 0:03:03.1]} 19. cxd5 {[%clk 0:02:16.6]} 19... b5 {[%clk 0:03:04.3]}
20. a3 {[%clk 0:02:15.1]} 20... Qb7 {[%clk 0:03:03.4]} 21. Bxc5 {[%clk
0:02:01.7]} 21... Rxc5 {[%clk 0:03:03.4]} 22. b4 {[%clk 0:02:02.8]} 22... Rc7
{[%clk 0:02:38]} 23. bxa5 {[%clk 0:01:57.4]} 23... Rxa5 {[%clk 0:02:37.9]} 24.
Rb3 {[%clk 0:01:47.8]} 24... Qa7 {[%clk 0:02:37.4]} 25. Qb2 {[%clk 0:01:31.6]}
25... Qf2 {[%clk 0:02:30]} 26. Nc4 {[%clk 0:01:23.2]} 26... Qxb2 {[%clk
0:02:30.5]} 27. Nxb2 {[%clk 0:01:25.1]} 27... h5 {[%clk 0:02:29.8]} 28. Nxb5
{[%clk 0:01:19.9]} 28... Rc2 {[%clk 0:02:30.9]} 29. a4 {[%clk 0:01:16.1]} 29...
Bf8 {[%clk 0:02:30.1]} 30. Nc4 {[%clk 0:01:16.8]} 30... Ra6 {[%clk 0:02:28]} 31.
a5 {[%clk 0:01:11.9]} 31... Ne2 {[%clk 0:02:13.9]} 32. Nb6 {[%clk 0:00:56.6]}
32... Rxa5 {[%clk 0:01:29.3]} 33. Rxa5 {[%clk 0:00:43.5]} 33... Rc1 {[%clk
0:01:30.5]} 34. h4 {[%clk 0:00:30.6]} 34... Rxf1+ {[%clk 0:01:30.5]} 35. Kh2
{[%clk 0:00:30.4]} 35... Bh6 {[%clk 0:01:29.4]} 36. Nxd7 {[%clk 0:00:15.8]}
36... Bf4+ {[%clk 0:01:30.3]} 37. g3 {[%clk 0:00:17.3]} 37... Rf2+ {[%clk
0:01:31.7]} 38. Kh1 {[%clk 0:00:16.5]} 38... Bxg3 {[%clk 0:01:32]} 39. Nf6+
{[%clk 0:00:13.2]} 39... Kg7 {[%clk 0:01:33.4]} 40. Ne8+ {[%clk 0:00:13.8]}
40... Kh6 {[%clk 0:01:34.9]} 0-1

[Event "*** Titled Tuesday Blitz"]
[Site "Chess.com"]
[Date "2019.07.02"]
[Round "1"]
[White "chess4life23"]
[Black "DryCounty"]
[Result "0-1"]
[WhiteElo "2338"]
[BlackElo "2689"]
[TimeControl "180+2"]
[EndTime "13:07:32 PDT"]
[Termination "DryCounty won by resignation"]

1. d4 {[%clk 0:03:01]} 1... Nf6 {[%clk 0:02:58.1]} 2. c4 {[%clk 0:03:01.4]} 2...
g6 {[%clk 0:02:59.3]} 3. Nc3 {[%clk 0:03:01.8]} 3... Bg7 {[%clk 0:03:00.8]} 4.
e4 {[%clk 0:03:02.3]} 4... O-O {[%clk 0:03:02.1]} 5. Be2 {[%clk 0:03:03.4]} 5...
d6 {[%clk 0:02:58.1]} 6. Nf3 {[%clk 0:03:04.7]} 6... e5 {[%clk 0:02:57.7]} 7.
O-O {[%clk 0:03:05.6]} 7... c6 {[%clk 0:02:56.9]} 8. Re1 {[%clk 0:03:02.5]} 8...
exd4 {[%clk 0:02:57.2]} 9. Nxd4 {[%clk 0:03:03.2]} 9... Re8 {[%clk 0:02:58.8]}
10. Bf1 {[%clk 0:03:03.9]} 10... Qb6 {[%clk 0:02:59]} 11. Nb3 {[%clk 0:02:42.4]}
11... Ng4 {[%clk 0:02:58.6]} 12. Qc2 {[%clk 0:02:37.2]} 12... a5 {[%clk
0:02:58.1]} 13. h3 {[%clk 0:02:37.4]} 13... a4 {[%clk 0:02:58.3]} 14. Nxa4
{[%clk 0:02:24.8]} 14... Rxa4 {[%clk 0:02:58.6]} 15. hxg4 {[%clk 0:02:25.7]}
15... Bxg4 {[%clk 0:03:00.5]} 16. Be3 {[%clk 0:02:19.7]} 16... Qd8 {[%clk
0:02:57.8]} 17. Nc5 {[%clk 0:02:14]} 17... Ra8 {[%clk 0:02:54.4]} 18. Na4 {[%clk
0:02:00.2]} 18... Nd7 {[%clk 0:02:37.1]} 19. f3 {[%clk 0:01:48.5]} 19... Be6
{[%clk 0:02:35.3]} 20. Rad1 {[%clk 0:01:48.7]} 20... Qe7 {[%clk 0:02:30.8]} 21.
Nc3 {[%clk 0:01:45.1]} 21... Ne5 {[%clk 0:02:29.6]} 22. b3 {[%clk 0:01:43.7]}
22... Qf6 {[%clk 0:02:22.9]} 23. Ne2 {[%clk 0:01:36.5]} 23... Nxf3+ {[%clk
0:01:46.8]} 24. gxf3 {[%clk 0:01:34.4]} 24... Qxf3 {[%clk 0:01:48.7]} 25. Nd4
{[%clk 0:01:29.5]} 25... Qh5 {[%clk 0:01:34.7]} 26. Nxe6 {[%clk 0:01:20.6]}
26... Rxe6 {[%clk 0:01:33.3]} 27. Qg2 {[%clk 0:01:21.3]} 27... Be5 {[%clk
0:01:12.7]} 28. Bd4 {[%clk 0:01:16.1]} 28... Bxd4+ {[%clk 0:01:05]} 29. Rxd4
{[%clk 0:01:16]} 29... Re5 {[%clk 0:01:06.5]} 30. Be2 {[%clk 0:01:14.9]} 30...
Qh4 {[%clk 0:01:04.9]} 31. Kf1 {[%clk 0:00:23.7]} 31... Rg5 {[%clk 0:00:54.6]}
32. Qf3 {[%clk 0:00:24.6]} 32... Qh2 {[%clk 0:00:47.4]} 0-1

[Event "*** Titled Tuesday Blitz"]
[Site "Chess.com"]
[Date "2019.07.02"]
[Round "1"]
[White "Alopekos"]
[Black "DanielNaroditsky"]
[Result "0-1"]
[WhiteElo "2472"]
[BlackElo "3018"]
[TimeControl "180+2"]
[EndTime "13:07:33 PDT"]
[Termination "DanielNaroditsky won by resignation"]

1. e4 {[%clk 0:02:57.4]} 1... e5 {[%clk 0:03:00.5]} 2. Nf3 {[%clk 0:02:58.4]}
2... Nc6 {[%clk 0:03:01.8]} 3. Bb5 {[%clk 0:02:59.8]} 3... a6 {[%clk 0:03:03.3]}
4. Ba4 {[%clk 0:03:01.2]} 4... Nf6 {[%clk 0:03:04.5]} 5. O-O {[%clk 0:03:02.3]}
5... Be7 {[%clk 0:03:06.1]} 6. Re1 {[%clk 0:03:02.6]} 6... b5 {[%clk 0:03:07.3]}
7. Bb3 {[%clk 0:03:03.9]} 7... d6 {[%clk 0:03:09.1]} 8. a4 {[%clk 0:03:05]} 8...
b4 {[%clk 0:03:09.3]} 9. a5 {[%clk 0:03:03.5]} 9... O-O {[%clk 0:03:09.1]} 10.
c3 {[%clk 0:03:04.5]} 10... Rb8 {[%clk 0:03:08.9]} 11. h3 {[%clk 0:02:59.9]}
11... d5 {[%clk 0:03:08.1]} 12. exd5 {[%clk 0:02:59]} 12... Nxd5 {[%clk
0:03:09.5]} 13. Nxe5 {[%clk 0:03:00.2]} 13... Nxe5 {[%clk 0:03:10.3]} 14. Rxe5
{[%clk 0:03:02.1]} 14... Bb7 {[%clk 0:03:07.7]} 15. d4 {[%clk 0:02:57.3]} 15...
Bf6 {[%clk 0:02:55.4]} 16. Re1 {[%clk 0:02:51.6]} 16... c5 {[%clk 0:02:56.2]}
17. c4 {[%clk 0:02:37]} 17... Ne7 {[%clk 0:02:42.6]} 18. d5 {[%clk 0:02:35.3]}
18... Nf5 {[%clk 0:02:40.6]} 19. Nd2 {[%clk 0:02:23.3]} 19... Re8 {[%clk
0:02:26.5]} 20. Ne4 {[%clk 0:02:19.3]} 20... Bd4 {[%clk 0:02:27]} 21. Ba4 {[%clk
0:02:13.6]} 21... Rf8 {[%clk 0:01:42.3]} 22. Bf4 {[%clk 0:01:51.1]} 22... Ra8
{[%clk 0:01:41.7]} 23. Qg4 {[%clk 0:01:44.4]} 23... Bc8 {[%clk 0:01:38.1]} 24.
Qe2 {[%clk 0:00:32.8]} 24... h6 {[%clk 0:01:18.6]} 25. Bc6 {[%clk 0:00:27.7]}
25... Ra7 {[%clk 0:01:20]} 26. Bb8 {[%clk 0:00:22.5]} 26... Re7 {[%clk
0:01:21.1]} 27. d6 {[%clk 0:00:24]} 27... Re6 {[%clk 0:01:13.9]} 28. Bd5 {[%clk
0:00:23]} 28... Rg6 {[%clk 0:01:15.1]} 29. Qh5 {[%clk 0:00:13.3]} 29... Nh4
{[%clk 0:01:05.1]} 30. Nd2 {[%clk 0:00:04.5]} 30... Bxh3 {[%clk 0:00:59.4]} 31.
Bc7 {[%clk 0:00:05.4]} 31... Qf6 {[%clk 0:00:58.9]} 32. d7 {[%clk 0:00:03.7]}
32... Qxf2+ {[%clk 0:00:57.6]} 0-1

[Event "*** Titled Tuesday Blitz"]
[Site "Chess.com"]
[Date "2019.07.02"]
[Round "1"]
[White "Gr3egor"]
[Black "pandamaster3000"]
[Result "1-0"]
[WhiteElo "2615"]
[BlackElo "2281"]
[TimeControl "180+2"]
[EndTime "13:07:33 PDT"]
[Termination "Gr3egor won by resignation"]

1. d4 {[%clk 0:03:01.9]} 1... Nf6 {[%clk 0:03:00.6]} 2. c4 {[%clk 0:03:02.6]}
2... g6 {[%clk 0:03:02.1]} 3. Nc3 {[%clk 0:03:03.5]} 3... Bg7 {[%clk 0:03:03.7]}
4. e4 {[%clk 0:03:04.7]} 4... d6 {[%clk 0:03:05.3]} 5. h3 {[%clk 0:03:06.1]}
5... O-O {[%clk 0:03:06.4]} 6. Be3 {[%clk 0:03:07.4]} 6... e5 {[%clk 0:03:04.3]}
7. d5 {[%clk 0:03:08.3]} 7... a5 {[%clk 0:03:04.6]} 8. g4 {[%clk 0:03:06.2]}
8... Na6 {[%clk 0:03:06]} 9. Qd2 {[%clk 0:03:07]} 9... c6 {[%clk 0:03:03.9]} 10.
dxc6 {[%clk 0:03:03.5]} 10... bxc6 {[%clk 0:03:01.4]} 11. O-O-O {[%clk
0:03:04.8]} 11... Be6 {[%clk 0:02:30.4]} 12. Qxd6 {[%clk 0:03:02.5]} 12... Qc8
{[%clk 0:02:23.3]} 13. Nf3 {[%clk 0:02:56.5]} 13... Nd7 {[%clk 0:02:03.4]} 14.
Ng5 {[%clk 0:02:55.1]} 14... Rd8 {[%clk 0:01:21.7]} 15. Nxe6 {[%clk 0:02:54.4]}
15... fxe6 {[%clk 0:01:23.6]} 16. Qxe6+ {[%clk 0:02:55.8]} 16... Kh8 {[%clk
0:01:25.1]} 17. Bg5 {[%clk 0:02:55.7]} 17... Nf6 {[%clk 0:01:20.1]} 18. Rxd8+
{[%clk 0:02:45.2]} 18... Qxd8 {[%clk 0:01:20.5]} 19. Be2 {[%clk 0:02:30.4]}
19... Nc5 {[%clk 0:00:56.7]} 20. Qxc6 {[%clk 0:02:30.3]} 20... Rc8 {[%clk
0:00:55.3]} 21. Bxf6 {[%clk 0:02:31.1]} 21... Bxf6 {[%clk 0:00:52.3]} 22. Qd5
{[%clk 0:02:31.9]} 22... Qb6 {[%clk 0:00:45.6]} 23. Rd1 {[%clk 0:02:30.8]} 23...
Rb8 {[%clk 0:00:41.1]} 24. Nb5 {[%clk 0:02:27.3]} 24... Bg5+ {[%clk 0:00:37.2]}
25. Kc2 {[%clk 0:02:24.6]} 25... Bf4 {[%clk 0:00:35.5]} 26. Qf7 {[%clk
0:01:28.7]} 26... Rc8 {[%clk 0:00:22.8]} 27. Rd6 {[%clk 0:01:21]} 27... Qb8
{[%clk 0:00:18.8]} 28. f3 {[%clk 0:01:03.7]} 28... Rf8 {[%clk 0:00:19.1]} 29.
Qd5 {[%clk 0:01:04.4]} 29... Rc8 {[%clk 0:00:19.4]} 30. Rc6 {[%clk 0:01:02.6]}
30... Rd8 {[%clk 0:00:16.6]} 31. Qxc5 {[%clk 0:00:58]} 31... Rd2+ {[%clk
0:00:17.4]} 32. Kb3 {[%clk 0:00:56.1]} 32... a4+ {[%clk 0:00:18.2]} 33. Ka3
{[%clk 0:00:57.7]} 33... Kg7 {[%clk 0:00:15.2]} 34. Qe7+ {[%clk 0:00:56.5]}
34... Kh6 {[%clk 0:00:14.8]} 35. Qh4+ {[%clk 0:00:57.7]} 35... Kg7 {[%clk
0:00:15.5]} 36. Rc7+ {[%clk 0:00:59.2]} 36... Kf8 {[%clk 0:00:11.3]} 37. Qe7+
{[%clk 0:00:58.8]} 1-0